[Event "Titled Tuesday Blitz October 11 Late 2022"]
[White "Carlsen, Magnus"]
[Black "Lazavik, Denis"]
[WhiteFideId "1503014"]
[BlackFideId "13515110"]
[WhiteElo "2830"]
[BlackElo "2437"]
[Result "1-0"]
[Round "11"]
[TimeControl "180+1"]
[Date "2022.10.11"]
[WhiteClock "0:00:26"]
[BlackClock "0:00:05"]

1. g4 {[%clk 0:03:00]}  d5 {[%clk 0:02:58]} 2. h3 {[%clk 0:03:00]}  e5 {[%clk 0:02:57]} 3. d3 {[%clk 0:02:58]}  Nc6 {[%clk 0:02:56]} 4. Bg2 {[%clk 0:02:57]}  Be6 {[%clk 0:02:57]} 5. a3 {[%clk 0:02:54]}  Qd7 {[%clk 0:02:48]} 6. b4 {[%clk 0:02:53]}  f6 {[%clk 0:02:45]} 7. Bb2 {[%clk 0:02:50]}  Nge7 {[%clk 0:02:42]} 8. Nf3 {[%clk 0:02:45]}  h5 {[%clk 0:02:35]} 9. g5 {[%clk 0:02:44]}  O-O-O {[%clk 0:02:33]} 10. Nbd2 {[%clk 0:02:43]}  Ng6 {[%clk 0:02:25]} 11. e3 {[%clk 0:02:43]}  Bd6 {[%clk 0:02:25]} 12. c4 {[%clk 0:02:38]}  Qf7 {[%clk 0:01:52]} 13. c5 {[%clk 0:02:34]}  Be7 {[%clk 0:01:52]} 14. b5 {[%clk 0:02:30]}  Nb8 {[%clk 0:01:50]} 15. Qc2 {[%clk 0:02:29]}  d4 {[%clk 0:01:36]} 16. O-O-O {[%clk 0:02:21]}  Bd5 {[%clk 0:01:34]} 17. h4 {[%clk 0:02:18]}  Nd7 {[%clk 0:01:27]} 18. Bh3 {[%clk 0:02:11]}  Kb8 {[%clk 0:01:23]} 19. gxf6 {[%clk 0:02:01]}  gxf6 {[%clk 0:01:22]} 20. exd4 {[%clk 0:01:58]}  exd4 {[%clk 0:01:07]} 21. Bxd7 {[%clk 0:01:55]}  Rxd7 {[%clk 0:01:08]} 22. Rhe1 {[%clk 0:01:54]}  Qf8 {[%clk 0:00:54]} 23. c6 {[%clk 0:01:45]}  Rd8 {[%clk 0:00:52]} 24. Qa4 {[%clk 0:01:42]}  Nf4 {[%clk 0:00:36]} 25. Kc2 {[%clk 0:01:26]}  Bc5 {[%clk 0:00:33]} 26. Nxd4 {[%clk 0:01:23]}  Bb6 {[%clk 0:00:25]} 27. cxb7 {[%clk 0:01:20]}  Bxb7 {[%clk 0:00:22]} 28. N2b3 {[%clk 0:00:54]}  Ng2 {[%clk 0:00:10]} 29. Re6 {[%clk 0:00:49]}  Rd6 {[%clk 0:00:08]} 30. Rxd6 {[%clk 0:00:40]}  Qxd6 {[%clk 0:00:09]} 31. Nc6+ {[%clk 0:00:40]}  Bxc6 {[%clk 0:00:09]} 32. bxc6 {[%clk 0:00:41]}  Ka8 {[%clk 0:00:06]} 33. d4 {[%clk 0:00:40]}  Nf4 {[%clk 0:00:04]} 34. Qc4 {[%clk 0:00:39]}  Nd5 {[%clk 0:00:04]} 35. Re1 {[%clk 0:00:31]}  Rd8 {[%clk 0:00:05]} 36. Bc1 {[%clk 0:00:30]}  Qh2 {[%clk 0:00:04]} 37. Qxd5 {[%clk 0:00:27]}  Qxf2+ {[%clk 0:00:04]} 38. Bd2 {[%clk 0:00:28]}  Rb8 {[%clk 0:00:04]} 39. Qc4 {[%clk 0:00:27]}  Qxh4 {[%clk 0:00:04]} 40. a4 {[%clk 0:00:27]}  Qg4 {[%clk 0:00:04]} 41. a5 {[%clk 0:00:27]}  Qf5+ {[%clk 0:00:04]} 42. Qd3 {[%clk 0:00:26]}  Qd5 {[%clk 0:00:05]} 43. axb6 {[%clk 0:00:26]}  Qd6 {[%clk 0:00:05]} 44. b7+ {[%clk 0:00:26]} 1-0


[Site "https://www.chess.com"]

[Event "Titled Tuesday Blitz October 11 Late 2022"]
[White "D`Arruda, Ricardo D."]
[Black "Osmonbekov, Talaibek"]
[WhiteFideId "100692"]
[BlackFideId "2017253"]
[WhiteElo "2425"]
[BlackElo "2135"]
[Result "1-0"]
[Round "11"]
[TimeControl "180+1"]
[Date "2022.10.12"]
[WhiteClock "0:00:23"]
[BlackClock "0:00:01"]

1. d4 {[%clk 0:02:52]}  e6 {[%clk 0:02:59]} 2. e4 {[%clk 0:02:51]}  d5 {[%clk 0:02:59]} 3. Nc3 {[%clk 0:02:51]}  dxe4 {[%clk 0:02:57]} 4. Nxe4 {[%clk 0:02:51]}  Nf6 {[%clk 0:02:58]} 5. Nxf6+ {[%clk 0:02:50]}  Qxf6 {[%clk 0:02:55]} 6. Nf3 {[%clk 0:02:50]}  h6 {[%clk 0:02:47]} 7. Bd3 {[%clk 0:02:47]}  c5 {[%clk 0:02:45]} 8. O-O {[%clk 0:02:46]}  Nc6 {[%clk 0:02:43]} 9. Be3 {[%clk 0:02:43]}  cxd4 {[%clk 0:02:35]} 10. Nxd4 {[%clk 0:02:44]}  Bd7 {[%clk 0:02:34]} 11. Nb5 {[%clk 0:02:29]}  Rc8 {[%clk 0:02:20]} 12. Nxa7 {[%clk 0:02:21]}  Nxa7 {[%clk 0:02:19]} 13. Bxa7 {[%clk 0:02:22]}  Bc6 {[%clk 0:02:12]} 14. c3 {[%clk 0:02:12]}  Be7 {[%clk 0:02:09]} 15. Qg4 {[%clk 0:02:05]}  O-O {[%clk 0:02:04]} 16. Bd4 {[%clk 0:02:05]}  e5 {[%clk 0:02:03]} 17. Be3 {[%clk 0:02:00]}  b5 {[%clk 0:01:48]} 18. a3 {[%clk 0:01:47]}  Ra8 {[%clk 0:01:35]} 19. Rad1 {[%clk 0:01:39]}  Ra4 {[%clk 0:01:34]} 20. Qf5 {[%clk 0:01:39]}  Qxf5 {[%clk 0:01:03]} 21. Bxf5 {[%clk 0:01:40]}  Bxa3 {[%clk 0:00:48]} 22. bxa3 {[%clk 0:01:35]}  Rxa3 {[%clk 0:00:49]} 23. Bc5 {[%clk 0:01:33]}  Rxc3 {[%clk 0:00:47]} 24. Bxf8 {[%clk 0:01:33]}  Kxf8 {[%clk 0:00:47]} 25. Rc1 {[%clk 0:01:33]}  b4 {[%clk 0:00:44]} 26. Rxc3 {[%clk 0:01:32]}  bxc3 {[%clk 0:00:45]} 27. Rc1 {[%clk 0:01:32]}  Bd5 {[%clk 0:00:43]} 28. Rxc3 {[%clk 0:01:32]}  Ke7 {[%clk 0:00:43]} 29. Rc5 {[%clk 0:01:29]}  Kd6 {[%clk 0:00:42]} 30. Rxd5+ {[%clk 0:01:28]}  Kxd5 {[%clk 0:00:41]} 31. f3 {[%clk 0:01:28]}  g6 {[%clk 0:00:40]} 32. Bc2 {[%clk 0:01:27]}  Kd4 {[%clk 0:00:36]} 33. Kf2 {[%clk 0:01:24]}  f5 {[%clk 0:00:35]} 34. Bb3 {[%clk 0:01:22]}  e4 {[%clk 0:00:33]} 35. f4 {[%clk 0:01:13]}  g5 {[%clk 0:00:32]} 36. g3 {[%clk 0:01:12]}  Kd3 {[%clk 0:00:20]} 37. Be6 {[%clk 0:00:34]}  gxf4 {[%clk 0:00:17]} 38. gxf4 {[%clk 0:00:33]}  Kd2 {[%clk 0:00:16]} 39. Bc4 {[%clk 0:00:29]}  Kc3 {[%clk 0:00:16]} 40. Ba6 {[%clk 0:00:26]}  Kd2 {[%clk 0:00:15]} 41. Bb5 {[%clk 0:00:23]}  e3+ {[%clk 0:00:05]} 42. Kf3 {[%clk 0:00:23]}  h5 {[%clk 0:00:01]} 43. h4 {[%clk 0:00:23]} 1-0


[Site "https://www.chess.com"]

[Event "Titled Tuesday Blitz October 11 Late 2022"]
[White "Diaz Rosas, Julio Cesar"]
[Black "Sztokbant, Bernardo Vainzoff"]
[WhiteFideId "5105099"]
[BlackFideId "2115956"]
[WhiteElo "2246"]
[BlackElo "2171"]
[Result "1-0"]
[Round "11"]
[TimeControl "180+1"]
[Date "2022.10.12"]
[WhiteClock "0:00:14"]
[BlackClock "0:00:02"]

1. d4 {[%clk 0:03:00]}  Nf6 {[%clk 0:02:59]} 2. c4 {[%clk 0:03:00]}  c6 {[%clk 0:02:58]} 3. d5 {[%clk 0:02:57]}  d6 {[%clk 0:02:56]} 4. Nc3 {[%clk 0:02:57]}  e6 {[%clk 0:02:56]} 5. e4 {[%clk 0:02:57]}  exd5 {[%clk 0:02:53]} 6. exd5 {[%clk 0:02:56]}  Be7 {[%clk 0:02:50]} 7. Bd3 {[%clk 0:02:43]}  O-O {[%clk 0:02:50]} 8. Nge2 {[%clk 0:02:42]}  Nbd7 {[%clk 0:02:49]} 9. O-O {[%clk 0:02:34]}  Ne5 {[%clk 0:02:48]} 10. Bc2 {[%clk 0:02:28]}  Nxc4 {[%clk 0:02:44]} 11. Nf4 {[%clk 0:02:26]}  Ne5 {[%clk 0:02:41]} 12. h3 {[%clk 0:02:23]}  Re8 {[%clk 0:02:35]} 13. Be3 {[%clk 0:02:21]}  Nc4 {[%clk 0:02:29]} 14. Bd4 {[%clk 0:02:19]}  c5 {[%clk 0:02:29]} 15. Bxf6 {[%clk 0:02:17]}  Bxf6 {[%clk 0:02:29]} 16. Nh5 {[%clk 0:02:11]}  g6 {[%clk 0:02:25]} 17. Nxf6+ {[%clk 0:02:07]}  Qxf6 {[%clk 0:02:26]} 18. Ne4 {[%clk 0:02:03]}  Rxe4 {[%clk 0:02:23]} 19. Bxe4 {[%clk 0:02:04]}  Nxb2 {[%clk 0:02:16]} 20. Qc2 {[%clk 0:02:01]}  Bd7 {[%clk 0:02:15]} 21. Rab1 {[%clk 0:01:57]}  Na4 {[%clk 0:02:12]} 22. Rxb7 {[%clk 0:01:54]}  Nb6 {[%clk 0:02:05]} 23. Re1 {[%clk 0:01:51]}  Re8 {[%clk 0:02:03]} 24. Rxa7 {[%clk 0:01:46]}  Bf5 {[%clk 0:01:58]} 25. f3 {[%clk 0:01:46]}  Nxd5 {[%clk 0:01:50]} 26. Qd2 {[%clk 0:01:33]}  Bxe4 {[%clk 0:01:26]} 27. fxe4 {[%clk 0:01:29]}  Nf4 {[%clk 0:01:13]} 28. Rd7 {[%clk 0:01:14]}  Re6 {[%clk 0:00:37]} 29. a4 {[%clk 0:01:04]}  Qg5 {[%clk 0:00:23]} 30. Kh1 {[%clk 0:00:39]}  d5 {[%clk 0:00:19]} 31. Rxd5 {[%clk 0:00:31]}  Qg3 {[%clk 0:00:19]} 32. Rd8+ {[%clk 0:00:29]}  Kg7 {[%clk 0:00:19]} 33. Re3 {[%clk 0:00:25]}  Qg5 {[%clk 0:00:12]} 34. a5 {[%clk 0:00:22]}  c4 {[%clk 0:00:04]} 35. Rf3 {[%clk 0:00:16]}  Nxh3 {[%clk 0:00:02]} 36. Qd4+ {[%clk 0:00:14]} 1-0


[Site "https://www.chess.com"]

[Event "Titled Tuesday Blitz October 11 Late 2022"]
[White "Fernandez De La Vara, Arnaldo"]
[Black "Bazeev, German"]
[WhiteFideId "3518388"]
[BlackFideId "24119350"]
[WhiteElo "2387"]
[BlackElo "2493"]
[Result "0-1"]
[Round "11"]
[TimeControl "180+1"]
[Date "2022.10.11"]
[WhiteClock "0:00:02"]
[BlackClock "0:00:08"]

1. Nf3 {[%clk 0:03:00]}  Nf6 {[%clk 0:02:36]} 2. b3 {[%clk 0:03:01]}  d5 {[%clk 0:02:34]} 3. Bb2 {[%clk 0:03:01]}  c6 {[%clk 0:02:35]} 4. g3 {[%clk 0:03:02]}  Bg4 {[%clk 0:02:35]} 5. Bg2 {[%clk 0:03:02]}  Nbd7 {[%clk 0:02:35]} 6. O-O {[%clk 0:03:02]}  Bxf3 {[%clk 0:02:34]} 7. Bxf3 {[%clk 0:03:02]}  e5 {[%clk 0:02:34]} 8. c4 {[%clk 0:02:53]}  d4 {[%clk 0:02:26]} 9. e3 {[%clk 0:02:48]}  dxe3 {[%clk 0:02:10]} 10. fxe3 {[%clk 0:02:30]}  Bd6 {[%clk 0:01:55]} 11. Nc3 {[%clk 0:02:23]}  O-O {[%clk 0:01:54]} 12. d4 {[%clk 0:02:19]}  Qe7 {[%clk 0:01:52]} 13. Qc2 {[%clk 0:02:08]}  Rad8 {[%clk 0:01:49]} 14. Rad1 {[%clk 0:02:00]}  Rfe8 {[%clk 0:01:43]} 15. Kg2 {[%clk 0:01:39]}  a6 {[%clk 0:01:36]} 16. Qf5 {[%clk 0:01:32]}  Nf8 {[%clk 0:01:25]} 17. Kh1 {[%clk 0:00:34]}  Ng6 {[%clk 0:01:09]} 18. Bg2 {[%clk 0:00:34]}  Ba3 {[%clk 0:01:01]} 19. Ba1 {[%clk 0:00:33]}  e4 {[%clk 0:00:50]} 20. d5 {[%clk 0:00:28]}  Bc5 {[%clk 0:00:31]} 21. Nxe4 {[%clk 0:00:15]}  Nxe4 {[%clk 0:00:27]} 22. Rd3 {[%clk 0:00:05]}  Nf6 {[%clk 0:00:20]} 23. h4 {[%clk 0:00:03]}  h5 {[%clk 0:00:17]} 24. Kh2 {[%clk 0:00:03]}  cxd5 {[%clk 0:00:14]} 25. cxd5 {[%clk 0:00:02]}  Bd6 {[%clk 0:00:15]} 26. Kh3 {[%clk 0:00:02]}  Qd7 {[%clk 0:00:14]} 27. e4 {[%clk 0:00:02]}  Ne5 {[%clk 0:00:09]} 28. Qxd7 {[%clk 0:00:01]}  Nfxd7 {[%clk 0:00:09]} 29. Rc3 {[%clk 0:00:02]}  f6 {[%clk 0:00:09]} 30. Rfc1 {[%clk 0:00:02]}  Kf7 {[%clk 0:00:08]} 31. Bb2 {[%clk 0:00:03]}  Ke7 {[%clk 0:00:08]} 32. R3c2 {[%clk 0:00:03]}  Rb8 {[%clk 0:00:06]} 33. Rc3 {[%clk 0:00:03]}  Nf7 {[%clk 0:00:04]} 34. Bf1 {[%clk 0:00:04]}  Be5 {[%clk 0:00:04]} 35. R3c2 {[%clk 0:00:04]}  Bxb2 {[%clk 0:00:04]} 36. Rxb2 {[%clk 0:00:05]}  Rec8 {[%clk 0:00:04]} 37. Rbc2 {[%clk 0:00:05]}  Rxc2 {[%clk 0:00:04]} 38. Rxc2 {[%clk 0:00:06]}  Nd6 {[%clk 0:00:05]} 39. Be2 {[%clk 0:00:05]}  Rc8 {[%clk 0:00:05]} 40. Rxc8 {[%clk 0:00:04]}  Nxc8 {[%clk 0:00:06]} 41. Bxh5 {[%clk 0:00:05]}  Nd6 {[%clk 0:00:07]} 42. Kg4 {[%clk 0:00:04]}  Nxe4 {[%clk 0:00:07]} 43. Kf4 {[%clk 0:00:05]}  Nd6 {[%clk 0:00:07]} 44. Be2 {[%clk 0:00:04]}  Nb6 {[%clk 0:00:07]} 45. Bf3 {[%clk 0:00:04]}  Nd7 {[%clk 0:00:07]} 46. g4 {[%clk 0:00:04]}  Ne5 {[%clk 0:00:08]} 47. Be2 {[%clk 0:00:04]}  Ndf7 {[%clk 0:00:08]} 48. g5 {[%clk 0:00:04]}  fxg5+ {[%clk 0:00:08]} 49. hxg5 {[%clk 0:00:05]}  Nd7 {[%clk 0:00:07]} 50. Kf5 {[%clk 0:00:05]}  Nd6+ {[%clk 0:00:07]} 51. Kg6 {[%clk 0:00:05]}  Kf8 {[%clk 0:00:08]} 52. Bf1 {[%clk 0:00:03]}  Ne5+ {[%clk 0:00:08]} 53. Kh7 {[%clk 0:00:03]}  Ndf7 {[%clk 0:00:07]} 54. g6 {[%clk 0:00:02]}  Ng5+ {[%clk 0:00:08]} 0-1


[Site "https://www.chess.com"]

[Event "Titled Tuesday Blitz October 11 Late 2022"]
[White "Garmash, Aliona"]
[Black "P., Komal Kishore"]
[WhiteFideId "34127620"]
[BlackFideId "5016703"]
[WhiteElo "1980"]
[BlackElo "2122"]
[Result "0-1"]
[Round "11"]
[TimeControl "180+1"]
[Date "2022.10.12"]
[WhiteClock "0:00:01"]
[BlackClock "0:00:10"]

1. d4 {[%clk 0:03:00]}  d5 {[%clk 0:02:59]} 2. Nf3 {[%clk 0:02:59]}  Nf6 {[%clk 0:02:59]} 3. c4 {[%clk 0:02:59]}  c6 {[%clk 0:02:59]} 4. Nc3 {[%clk 0:02:59]}  dxc4 {[%clk 0:03:00]} 5. a4 {[%clk 0:02:58]}  Bf5 {[%clk 0:03:00]} 6. Ne5 {[%clk 0:02:58]}  Nbd7 {[%clk 0:02:59]} 7. Nxc4 {[%clk 0:02:58]}  Nb6 {[%clk 0:03:00]} 8. Ne5 {[%clk 0:02:58]}  Nfd7 {[%clk 0:03:00]} 9. Nxd7 {[%clk 0:02:57]}  Nxd7 {[%clk 0:02:57]} 10. e4 {[%clk 0:02:53]}  Bg6 {[%clk 0:02:57]} 11. f3 {[%clk 0:02:49]}  e6 {[%clk 0:02:57]} 12. Be3 {[%clk 0:02:48]}  Bb4 {[%clk 0:02:56]} 13. Be2 {[%clk 0:02:44]}  Qa5 {[%clk 0:02:55]} 14. Qc2 {[%clk 0:02:30]}  O-O {[%clk 0:02:51]} 15. O-O {[%clk 0:02:29]}  e5 {[%clk 0:02:47]} 16. dxe5 {[%clk 0:02:13]}  Nxe5 {[%clk 0:02:46]} 17. Na2 {[%clk 0:02:12]}  Be7 {[%clk 0:02:25]} 18. b4 {[%clk 0:02:01]}  Qc7 {[%clk 0:02:22]} 19. Rab1 {[%clk 0:01:57]}  f6 {[%clk 0:02:20]} 20. Nc3 {[%clk 0:01:56]}  Bf7 {[%clk 0:02:18]} 21. Rfc1 {[%clk 0:01:43]}  Nc4 {[%clk 0:02:16]} 22. Bxc4 {[%clk 0:01:37]}  Bxc4 {[%clk 0:02:16]} 23. b5 {[%clk 0:01:36]}  Be6 {[%clk 0:02:05]} 24. Nd5 {[%clk 0:01:27]}  Bxd5 {[%clk 0:01:46]} 25. exd5 {[%clk 0:01:26]}  Qe5 {[%clk 0:01:46]} 26. Qe4 {[%clk 0:01:13]}  cxd5 {[%clk 0:01:40]} 27. Qxe5 {[%clk 0:01:12]}  fxe5 {[%clk 0:01:39]} 28. Rc7 {[%clk 0:01:12]}  Bd8 {[%clk 0:01:27]} 29. Rxb7 {[%clk 0:01:11]}  d4 {[%clk 0:01:27]} 30. Bd2 {[%clk 0:01:09]}  Bb6 {[%clk 0:01:28]} 31. Kf1 {[%clk 0:01:08]}  Rac8 {[%clk 0:01:27]} 32. a5 {[%clk 0:01:07]}  Bc5 {[%clk 0:01:28]} 33. b6 {[%clk 0:01:03]}  axb6 {[%clk 0:01:25]} 34. axb6 {[%clk 0:01:02]}  e4 {[%clk 0:01:25]} 35. Rc7 {[%clk 0:00:40]}  Rxc7 {[%clk 0:01:05]} 36. bxc7 {[%clk 0:00:39]}  Bd6 {[%clk 0:01:05]} 37. Ba5 {[%clk 0:00:36]}  exf3 {[%clk 0:01:03]} 38. gxf3 {[%clk 0:00:35]}  Rxf3+ {[%clk 0:01:04]} 39. Ke2 {[%clk 0:00:34]}  Re3+ {[%clk 0:01:04]} 40. Kd2 {[%clk 0:00:31]}  Re8 {[%clk 0:01:04]} 41. Kd3 {[%clk 0:00:20]}  Bxh2 {[%clk 0:01:04]} 42. Kxd4 {[%clk 0:00:19]}  Rc8 {[%clk 0:01:02]} 43. Rc1 {[%clk 0:00:17]}  Bf4 {[%clk 0:01:00]} 44. Rc2 {[%clk 0:00:16]}  g5 {[%clk 0:00:59]} 45. Kd5 {[%clk 0:00:16]}  Kf7 {[%clk 0:00:58]} 46. Kc6 {[%clk 0:00:16]}  Ke6 {[%clk 0:00:57]} 47. Kb7 {[%clk 0:00:15]}  Kd7 {[%clk 0:00:54]} 48. Rc3 {[%clk 0:00:14]}  Bxc7 {[%clk 0:00:36]} 49. Bxc7 {[%clk 0:00:14]}  Rg8 {[%clk 0:00:32]} 50. Rh3 {[%clk 0:00:13]}  Rg7 {[%clk 0:00:31]} 51. Be5 {[%clk 0:00:13]}  Rf7 {[%clk 0:00:25]} 52. Kb6 {[%clk 0:00:12]}  Ke6 {[%clk 0:00:24]} 53. Bd4 {[%clk 0:00:11]}  g4 {[%clk 0:00:23]} 54. Rg3 {[%clk 0:00:11]}  h5 {[%clk 0:00:22]} 55. Kc5 {[%clk 0:00:11]}  Kf5 {[%clk 0:00:20]} 56. Kc4 {[%clk 0:00:09]}  Ke4 {[%clk 0:00:18]} 57. Bb6 {[%clk 0:00:08]}  Rf6 {[%clk 0:00:17]} 58. Ba7 {[%clk 0:00:07]}  Rc6+ {[%clk 0:00:17]} 59. Kb3 {[%clk 0:00:06]}  Rc7 {[%clk 0:00:14]} 60. Bf2 {[%clk 0:00:03]}  Kf4 {[%clk 0:00:12]} 61. Rg1 {[%clk 0:00:01]}  Rc6 {[%clk 0:00:10]} 0-1


[Site "https://www.chess.com"]

[Event "Titled Tuesday Blitz October 11 Late 2022"]
[White "Gonzalez, Francisco Silva"]
[Black "Ibadov, Dashgyn"]
[WhiteFideId "1512285"]
[BlackFideId "24107514"]
[WhiteElo "2159"]
[BlackElo "2208"]
[Result "1-0"]
[Round "11"]
[TimeControl "180+1"]
[Date "2022.10.12"]
[WhiteClock "0:00:26"]
[BlackClock "0:00:03"]

1. d4 {[%clk 0:02:55]}  Nf6 {[%clk 0:02:59]} 2. c4 {[%clk 0:02:54]}  c5 {[%clk 0:02:59]} 3. d5 {[%clk 0:02:54]}  d6 {[%clk 0:03:00]} 4. Nc3 {[%clk 0:02:53]}  g6 {[%clk 0:03:00]} 5. e4 {[%clk 0:02:53]}  Bg7 {[%clk 0:03:01]} 6. h3 {[%clk 0:02:53]}  O-O {[%clk 0:03:01]} 7. Nf3 {[%clk 0:02:54]}  e6 {[%clk 0:03:02]} 8. Bd3 {[%clk 0:02:53]}  exd5 {[%clk 0:03:02]} 9. cxd5 {[%clk 0:02:49]}  Re8 {[%clk 0:02:55]} 10. O-O {[%clk 0:02:48]}  Nbd7 {[%clk 0:02:55]} 11. Bf4 {[%clk 0:02:45]}  c4 {[%clk 0:02:52]} 12. Bc2 {[%clk 0:02:42]}  Nc5 {[%clk 0:02:51]} 13. Re1 {[%clk 0:02:40]}  b5 {[%clk 0:02:49]} 14. a3 {[%clk 0:02:35]}  Qb6 {[%clk 0:02:40]} 15. Qd2 {[%clk 0:02:34]}  Nfd7 {[%clk 0:02:30]} 16. Rad1 {[%clk 0:02:30]}  a5 {[%clk 0:02:23]} 17. Nd4 {[%clk 0:02:26]}  b4 {[%clk 0:02:18]} 18. Ncb5 {[%clk 0:02:26]}  b3 {[%clk 0:02:02]} 19. Bb1 {[%clk 0:02:26]}  Ne5 {[%clk 0:02:02]} 20. Be3 {[%clk 0:02:02]}  Bd7 {[%clk 0:01:51]} 21. Nc3 {[%clk 0:01:59]}  Qd8 {[%clk 0:01:46]} 22. Nc6 {[%clk 0:01:55]}  Bxc6 {[%clk 0:01:41]} 23. dxc6 {[%clk 0:01:55]}  Ncd3 {[%clk 0:01:41]} 24. Bxd3 {[%clk 0:01:50]}  Nxd3 {[%clk 0:01:42]} 25. Nd5 {[%clk 0:01:49]}  Nxb2 {[%clk 0:01:35]} 26. Bb6 {[%clk 0:01:48]}  Qc8 {[%clk 0:01:21]} 27. c7 {[%clk 0:01:48]}  c3 {[%clk 0:01:17]} 28. Nxc3 {[%clk 0:01:46]}  Nc4 {[%clk 0:01:17]} 29. Qd3 {[%clk 0:01:31]}  Nxb6 {[%clk 0:01:13]} 30. Nb5 {[%clk 0:01:31]}  b2 {[%clk 0:00:56]} 31. Qxd6 {[%clk 0:01:30]}  Nc4 {[%clk 0:00:39]} 32. Qc5 {[%clk 0:01:29]}  Qe6 {[%clk 0:00:25]} 33. a4 {[%clk 0:01:15]}  Rac8 {[%clk 0:00:19]} 34. Na7 {[%clk 0:01:01]}  Ra8 {[%clk 0:00:12]} 35. Nb5 {[%clk 0:01:00]}  Ne5 {[%clk 0:00:08]} 36. Rd5 {[%clk 0:00:55]}  Bf8 {[%clk 0:00:06]} 37. Qc2 {[%clk 0:00:50]}  Bg7 {[%clk 0:00:05]} 38. Kf1 {[%clk 0:00:46]}  Nc6 {[%clk 0:00:03]} 39. Qc5 {[%clk 0:00:40]}  Nb4 {[%clk 0:00:03]} 40. Rd6 {[%clk 0:00:37]}  Qa2 {[%clk 0:00:03]} 41. Rdd1 {[%clk 0:00:28]}  Qxa4 {[%clk 0:00:03]} 42. Nd6 {[%clk 0:00:27]}  Rf8 {[%clk 0:00:03]} 43. c8=Q {[%clk 0:00:25]}  Raxc8 {[%clk 0:00:03]} 44. Nxc8 {[%clk 0:00:26]} 1-0


[Site "https://www.chess.com"]

[Event "Titled Tuesday Blitz October 11 Late 2022"]
[White "Hansen, Eric"]
[Black "Duda, Jan-Krzysztof"]
[WhiteFideId "2606771"]
[BlackFideId "1170546"]
[WhiteElo "2568"]
[BlackElo "2779"]
[Result "1-0"]
[Round "11"]
[TimeControl "180+1"]
[Date "2022.10.11"]
[WhiteClock "0:00:25"]
[BlackClock "0:00:14"]

1. e4 {[%clk 0:02:55]}  e5 {[%clk 0:03:00]} 2. Nf3 {[%clk 0:02:56]}  Nc6 {[%clk 0:03:01]} 3. Bb5 {[%clk 0:02:56]}  a6 {[%clk 0:03:01]} 4. Ba4 {[%clk 0:02:56]}  Nf6 {[%clk 0:03:02]} 5. O-O {[%clk 0:02:57]}  Be7 {[%clk 0:03:02]} 6. Re1 {[%clk 0:02:57]}  b5 {[%clk 0:03:01]} 7. Bb3 {[%clk 0:02:58]}  O-O {[%clk 0:03:01]} 8. h3 {[%clk 0:02:58]}  Bb7 {[%clk 0:02:58]} 9. d3 {[%clk 0:02:57]}  d5 {[%clk 0:02:51]} 10. exd5 {[%clk 0:02:43]}  Nxd5 {[%clk 0:02:52]} 11. a4 {[%clk 0:02:28]}  Rb8 {[%clk 0:02:26]} 12. axb5 {[%clk 0:02:27]}  axb5 {[%clk 0:02:27]} 13. Nc3 {[%clk 0:02:15]}  Nxc3 {[%clk 0:02:25]} 14. bxc3 {[%clk 0:02:15]}  Kh8 {[%clk 0:01:59]} 15. Nxe5 {[%clk 0:02:02]}  Nxe5 {[%clk 0:02:00]} 16. Rxe5 {[%clk 0:02:02]}  c5 {[%clk 0:02:01]} 17. Bf4 {[%clk 0:01:50]}  Bd6 {[%clk 0:01:49]} 18. Qg4 {[%clk 0:01:42]}  c4 {[%clk 0:01:33]} 19. dxc4 {[%clk 0:01:19]}  bxc4 {[%clk 0:01:34]} 20. Bxc4 {[%clk 0:01:08]}  Qc8 {[%clk 0:01:31]} 21. Rf5 {[%clk 0:00:56]}  Bxf4 {[%clk 0:00:52]} 22. Qxf4 {[%clk 0:00:56]}  f6 {[%clk 0:00:53]} 23. Bd3 {[%clk 0:00:47]}  Qxc3 {[%clk 0:00:52]} 24. Rd1 {[%clk 0:00:39]}  g6 {[%clk 0:00:40]} 25. Rb5 {[%clk 0:00:36]}  Qc6 {[%clk 0:00:32]} 26. Qg3 {[%clk 0:00:33]}  Rbd8 {[%clk 0:00:26]} 27. Rdb1 {[%clk 0:00:33]}  Ba8 {[%clk 0:00:26]} 28. Rb6 {[%clk 0:00:32]}  Qc3 {[%clk 0:00:20]} 29. Ra6 {[%clk 0:00:29]}  Bd5 {[%clk 0:00:16]} 30. Ra7 {[%clk 0:00:26]}  Qd4 {[%clk 0:00:14]} 31. Rxh7+ {[%clk 0:00:25]} 1-0


[Site "https://www.chess.com"]

[Event "Titled Tuesday Blitz October 11 Late 2022"]
[White "Har-Zvi, Ronen"]
[Black "Sohal, Tanraj"]
[WhiteFideId "2801485"]
[BlackFideId "2608499"]
[WhiteElo "2523"]
[BlackElo "2200"]
[Result "1-0"]
[Round "11"]
[TimeControl "180+1"]
[Date "2022.10.11"]
[WhiteClock "0:02:07"]
[BlackClock "0:00:01"]

1. Nf3 {[%clk 0:02:58]}  d5 {[%clk 0:02:58]} 2. c4 {[%clk 0:02:59]}  e6 {[%clk 0:02:59]} 3. cxd5 {[%clk 0:02:59]}  exd5 {[%clk 0:02:59]} 4. d4 {[%clk 0:03:00]}  Nf6 {[%clk 0:02:59]} 5. Nc3 {[%clk 0:03:01]}  Be7 {[%clk 0:03:00]} 6. Bg5 {[%clk 0:03:02]}  O-O {[%clk 0:03:00]} 7. e3 {[%clk 0:03:02]}  c6 {[%clk 0:03:01]} 8. Bd3 {[%clk 0:03:03]}  Nbd7 {[%clk 0:03:00]} 9. Qc2 {[%clk 0:03:02]}  Re8 {[%clk 0:03:00]} 10. O-O {[%clk 0:03:02]}  Nf8 {[%clk 0:03:00]} 11. Rab1 {[%clk 0:03:03]}  g6 {[%clk 0:02:57]} 12. b4 {[%clk 0:03:01]}  Ne6 {[%clk 0:02:57]} 13. Bxf6 {[%clk 0:02:58]}  Bxf6 {[%clk 0:02:56]} 14. b5 {[%clk 0:02:59]}  c5 {[%clk 0:02:55]} 15. dxc5 {[%clk 0:02:59]}  Nxc5 {[%clk 0:02:55]} 16. Rfd1 {[%clk 0:02:59]}  Bg4 {[%clk 0:02:54]} 17. Bc4 {[%clk 0:02:38]}  dxc4 {[%clk 0:02:12]} 18. Rxd8 {[%clk 0:02:36]}  Raxd8 {[%clk 0:02:13]} 19. Rf1 {[%clk 0:02:27]}  Bf5 {[%clk 0:02:07]} 20. Qc1 {[%clk 0:02:27]}  Nd3 {[%clk 0:02:03]} 21. Qa3 {[%clk 0:02:27]}  a6 {[%clk 0:01:45]} 22. bxa6 {[%clk 0:02:26]}  bxa6 {[%clk 0:01:45]} 23. Nd4 {[%clk 0:02:25]}  Bxd4 {[%clk 0:01:32]} 24. exd4 {[%clk 0:02:26]}  Rxd4 {[%clk 0:01:30]} 25. Qxa6 {[%clk 0:02:26]}  Nf4 {[%clk 0:01:11]} 26. Qc6 {[%clk 0:02:25]}  Red8 {[%clk 0:01:02]} 27. h3 {[%clk 0:02:25]}  Rc8 {[%clk 0:00:16]} 28. Qf6 {[%clk 0:02:20]}  Rd3 {[%clk 0:00:12]} 29. Re1 {[%clk 0:02:20]}  Nd5 {[%clk 0:00:08]} 30. Nxd5 {[%clk 0:02:15]}  Rxd5 {[%clk 0:00:08]} 31. Re7 {[%clk 0:02:15]}  Rf8 {[%clk 0:00:04]} 32. Rc7 {[%clk 0:02:11]}  Be6 {[%clk 0:00:01]} 33. h4 {[%clk 0:02:07]} 1-0


[Site "https://www.chess.com"]